Workbook

Sheet ЗП
A1: Калькуляционный метод формирования цены на платные услуги
A2: РАСЧЕТ
A3: затрат на оплату труда основного персонала, непосредственно
A4: участвующего в процессе оказания платной услуги
A6: Наименование должности | B6: Средняяя заработная плата, включая начисления на выплаты по оплате труда, рублей в месяц | C6: Месячный фонд рабочего времени, минут | D6: Норма времени на оказание платной услуги, минут | E6: Затраты на оплату труда персонала, рублей
A7: 1 | B7: 2 | C7: 3 | D7: 4 | E7: 5
A8: Воспитатель Исхакова А.Ф. | B8: 20,796.83 | C8: 9072 | D8: 30 | E8: =(B8/C8)*D8 -> 68.77

Sheet МЗ
A3: РАСЧЕТ
A4: затрат на материальные запасы, полностью потребляемые
A5: в процессе оказания платной услуги (работы)
A7: № п/п | B7: Наименование товара, составляющего материальный запас | C7: Ед. изм. | D7: Норма потребления | E7: Объем оказания платных услуг за норму времени | F7: Цена за единицу (ср.рын.стоим., на 01.09.15г.) | G7: Всего затрат материальных запасов
A8: 1 | B8: 2 | C8: 3 | D8: 4 | E8: 5 | F8: 6 | G8: 7
A9: 1 | B9: Мука | C9: шт | D9: 2 | E9: 30 | F9: 20 | G9: =D9*F9 -> 40
A10: 2 | B10: Соль | C10: шт | D10: 5 | E10: 30 | F10: 25 | G10: =D10*F10 -> 125
A11: 3 | B11: Гуашь | C11: шт | D11: 2 | E11: 30 | F11: 30 | G11: 60
A12: 4 | B12: Пайетки | C12: шт | D12: 1 | E12: 30 | F12: 30 | G12: 30
A13: 5 | B13: Ватные диски | C13: шт | D13: 2 | E13: 30 | F13: 20 | G13: 40
A14: 6 | B14: Ватные палочки | C14: шт | D14: 1 | E14: 30 | F14: 15 | G14: 15
A15: 7 | B15: Бумага | C15: шт | D15: 1 | E15: 30 | F15: 180 | G15: 180
A16: 8 | B16: Картон белый | C16: шт | D16: 2 | E16: 30 | F16: 25 | G16: 50
A17: ИТОГО | G17: =SUM(G9:G16)/8 -> 67.5

Sheet ОС
A3: РАСЧЕТ
A4: суммы начисленной амортизации оборудования
A5: используемого при оказании платной услуги (работы)
A7: № п/п | B7: Наименование оборудования | C7: Балансовая стоимость | D7: Годовая норма износа, % | E7: Годовая норма времени работы оборудования, часов | F7: Время работы оборудования в процессе оказания платной услуги, часов | G7: Сумма начисленной амортизации
A8: 1 | B8: 2 | C8: 3 | D8: 4 | E8: 5 | F8: 6 | G8: 7
A9: 1 | B9: - | C9: 0.00 | D9: 0 | E9: 0 | F9: 30 | G9: =(C9*D9*E9)/F9 -> 0
A10: ИТОГО | G10: =SUM(G9:G9) -> 0

Sheet Накл.затр
A3: РАСЧЕТ
A4: накладных затрат, необходимых для обеспечения
A5: деятельности учреждения при оказании
A6: платной услуги (работы)
A8: № п/п | B8: Наименование статей затрат | C8: Сумма
A9: 1 | B9: 2 | C9: 3
A10: 1 | B10: Прогноз затрат на административно-управленческий персонал | C10: =(76115.09*1.302)*12 -> 1,189,222.17
A11: 2 | B11: Прогноз затрат общехозяйственного назначения | C11: 2,647,607.60
A12: 3 | B12: Прогноз суммы начисленной амортизации имущества общехозяйственного назначения | C12: 188,965.44
A13: 4 | B13: Прогноз суммарного фонда оплаты труда основного персонала | C13: =(511653.22*1.302)*12 -> 7,994,069.91
A14: 5 | B14: Коэффициент накладных затрат | C14: =(C10+C11+C12)/C13 -> 0.50
A15: 6 | B15: Затраты на основной персонал, участвующий в предоставлении платной услуги | C15: =ЗП!E8 -> 68.77
A16: ИТОГО | C16: =(C14*C15)/8 -> 4.33

Sheet ИТОГ
A1: РАСЧЕТ
A2: накладных затрат, необходимых для обеспечения
A3: деятельности учреждения при оказании
A4: платной услуги (работы)
A6: № п/п | B6: Наименование статей затрат | C6: Единица измерения | D6: Показатель
A7: 1 | B7: 2 | C7: 3 | D7: 4
A8: 1 | B8: Затраты на оплату труда основного персонала | C8: руб | D8: =ЗП!E8 -> 68.77
A9: 2 | B9: Всего затрат материальных запасов | C9: руб | D9: =МЗ!G17 -> 67.50
A10: 3 | B10: Сумма начисленной амортизации оборудования, используемого при оказании платной услуги | C10: руб | D10: =ОС!G10 -> 0.00
A11: 4 | B11: Накладные затраты, относимые на платную услугу | C11: руб | D11: =Накл.затр!C16 -> 4.33
A12: 5 | B12: ИТОГО затрат | C12: руб | D12: =SUM(D8:D11) -> 140.60
A13: 6 | B13: Рентабельность | C13: проценты | D13: 10.00
A14: 7 | B14: Затраты с учетом рентабельности | C14: руб | D14: =D12*1.1 -> 154.66
A15: 8 | B15: Плановое количество оказываемых услуг | C15: шт | D15: 8.00
A16: ЦЕНА ПЛАТНОЙ УСЛУГИ | C16: руб. за 1 услугу | D16: =D14*D15 -> 1,237.30
D17: 400.00
